[Event "Late-Titled-Tuesday-Blitz-May-14-2024"]
[Site "Chess.com"]
[Date "2024.05.14"]
[Round "8"]
[White "EsmeraldasAnderson03"]
[Black "KNVB"]
[Result "1-0"]
[WhiteElo "2554"]
[BlackElo "2795"]
[TimeControl "180+1"]
[EndTime "15:27:48 PDT"]
[Termination "EsmeraldasAnderson03 won by checkmate"]

1. d4 {[%clk 0:02:56]} 1... e5 {[%clk 0:02:59.9]} 2. dxe5 {[%clk 0:02:56]} 2...
Nc6 {[%clk 0:03:00.2]} 3. Nf3 {[%clk 0:02:56.9]} 3... Qe7 {[%clk 0:03:00.6]} 4.
Bf4 {[%clk 0:02:56.7]} 4... Qb4+ {[%clk 0:03:00.7]} 5. Bd2 {[%clk 0:02:57.3]}
5... Qxb2 {[%clk 0:03:01.2]} 6. Nc3 {[%clk 0:02:58]} 6... Bb4 {[%clk 0:03:01.8]}
7. Rb1 {[%clk 0:02:58.5]} 7... Qxc3 {[%clk 0:03:01.8]} 8. Bxc3 {[%clk 0:02:59]}
8... Bxc3+ {[%clk 0:03:02.7]} 9. Nd2 {[%clk 0:02:59.5]} 9... Nxe5 {[%clk
0:03:03.3]} 10. e4 {[%clk 0:02:59.5]} 10... Nf6 {[%clk 0:02:56.4]} 11. f3 {[%clk
0:02:52.2]} 11... O-O {[%clk 0:02:47]} 12. Be2 {[%clk 0:02:40.8]} 12... Bd4
{[%clk 0:01:37]} 13. Nc4 {[%clk 0:02:32]} 13... Bc3+ {[%clk 0:01:34.6]} 14. Kf2
{[%clk 0:02:30.7]} 14... Nxc4 {[%clk 0:01:26.9]} 15. Bxc4 {[%clk 0:02:31.6]}
15... d6 {[%clk 0:01:25.9]} 16. Qd3 {[%clk 0:02:27]} 16... Ba5 {[%clk
0:01:24.5]} 17. g3 {[%clk 0:02:24.7]} 17... Bb6+ {[%clk 0:01:14.8]} 18. Kg2
{[%clk 0:02:24.9]} 18... Re8 {[%clk 0:01:15.3]} 19. a4 {[%clk 0:02:17.3]} 19...
Be6 {[%clk 0:01:10.7]} 20. h4 {[%clk 0:02:17.4]} 20... Nd7 {[%clk 0:01:06.2]}
21. Bxe6 {[%clk 0:02:15.1]} 21... Rxe6 {[%clk 0:01:06.8]} 22. a5 {[%clk
0:02:15.1]} 22... Ne5 {[%clk 0:00:31]} 23. Qc3 {[%clk 0:02:07.1]} 23... Bc5
{[%clk 0:00:29.4]} 24. Rxb7 {[%clk 0:02:07.1]} 24... Rc8 {[%clk 0:00:17.2]} 25.
Rhb1 {[%clk 0:02:04.4]} 25... Ree8 {[%clk 0:00:17.8]} 26. R1b5 {[%clk
0:01:39.6]} 26... Nd7 {[%clk 0:00:17.9]} 27. Rb1 {[%clk 0:01:26.9]} 27... h5
{[%clk 0:00:15.2]} 28. Qb3 {[%clk 0:01:23.8]} 28... g6 {[%clk 0:00:06.9]} 29.
Qb5 {[%clk 0:01:16.1]} 29... Red8 {[%clk 0:00:07]} 30. Qa6 {[%clk 0:01:11]}
30... Nb8 {[%clk 0:00:04.7]} 31. Qc4 {[%clk 0:01:03.8]} 31... Nc6 {[%clk
0:00:04.9]} 32. R1b5 {[%clk 0:01:01.5]} 32... Ne5 {[%clk 0:00:02.6]} 33. Qc3
{[%clk 0:00:59.3]} 33... Nd7 {[%clk 0:00:03]} 34. Rxc5 {[%clk 0:00:55]} 34...
Nxc5 {[%clk 0:00:03.3]} 35. Rxa7 {[%clk 0:00:55.6]} 35... Re8 {[%clk 0:00:02]}
36. Qc4 {[%clk 0:00:53.7]} 36... Red8 {[%clk 0:00:01.4]} 37. Qd5 {[%clk
0:00:53.1]} 37... Re8 {[%clk 0:00:01.4]} 38. Qc6 {[%clk 0:00:53.2]} 38... Ne6
{[%clk 0:00:01.7]} 39. Rb7 {[%clk 0:00:49.8]} 39... Kf8 {[%clk 0:00:02.3]} 40.
a6 {[%clk 0:00:49.8]} 40... Nd8 {[%clk 0:00:02.8]} 41. Qd7 {[%clk 0:00:44.3]}
41... Nxb7 {[%clk 0:00:02.5]} 42. axb7 {[%clk 0:00:45.2]} 42... Rb8 {[%clk
0:00:01.6]} 43. Qxc7 {[%clk 0:00:45.5]} 43... Red8 {[%clk 0:00:01.9]} 44. c4
{[%clk 0:00:45]} 44... Ke8 {[%clk 0:00:02.1]} 45. e5 {[%clk 0:00:45.2]} 45... d5
{[%clk 0:00:00.9]} 46. cxd5 {[%clk 0:00:43.6]} 46... Kf8 {[%clk 0:00:01.2]} 47.
e6 {[%clk 0:00:42.9]} 47... fxe6 {[%clk 0:00:01.1]} 48. dxe6 {[%clk 0:00:43.8]}
48... Kg8 {[%clk 0:00:01.3]} 49. Qf7+ {[%clk 0:00:39.8]} 49... Kh8 {[%clk
0:00:01.7]} 50. Qxg6 {[%clk 0:00:40.4]} 50... Re8 {[%clk 0:00:01]} 51. Qxh5+
{[%clk 0:00:40.2]} 51... Kg7 {[%clk 0:00:01.3]} 52. Qg5+ {[%clk 0:00:40.3]}
52... Kh7 {[%clk 0:00:01.8]} 53. Qf5+ {[%clk 0:00:40.1]} 53... Kh8 {[%clk
0:00:01.4]} 54. Qf6+ {[%clk 0:00:40.3]} 54... Kh7 {[%clk 0:00:01.9]} 55. Qf7+
{[%clk 0:00:38.9]} 55... Kh8 {[%clk 0:00:02.4]} 56. h5 {[%clk 0:00:38.3]} 56...
Rg8 {[%clk 0:00:02]} 57. g4 {[%clk 0:00:36.8]} 57... Rbf8 {[%clk 0:00:01.9]} 58.
Qc7 {[%clk 0:00:32.6]} 58... Re8 {[%clk 0:00:01.3]} 59. Kh3 {[%clk 0:00:31]}
59... Rgf8 {[%clk 0:00:01.5]} 60. Kh4 {[%clk 0:00:30.6]} 60... Rg8 {[%clk
0:00:01.6]} 61. g5 {[%clk 0:00:30.8]} 61... Rgf8 {[%clk 0:00:01.8]} 62. f4
{[%clk 0:00:31.4]} 62... Rg8 {[%clk 0:00:01.8]} 63. g6 {[%clk 0:00:30.5]} 63...
Rgf8 {[%clk 0:00:02]} 64. Qh7# {[%clk 0:00:29.3]} 1-0

[Event "Late-Titled-Tuesday-Blitz-May-14-2024"]
[Site "Chess.com"]
[Date "2024.05.14"]
[Round "8"]
[White "albayo"]
[Black "Javadovvv"]
[Result "0-1"]
[WhiteElo "2403"]
[BlackElo "2581"]
[TimeControl "180+1"]
[EndTime "15:27:50 PDT"]
[Termination "Javadovvv won by checkmate"]

1. c4 {[%clk 0:03:00.9]} 1... e6 {[%clk 0:02:59.7]} 2. Nf3 {[%clk 0:02:58.7]}
2... d5 {[%clk 0:03:00.3]} 3. g3 {[%clk 0:02:58.9]} 3... Nf6 {[%clk 0:03:00.6]}
4. Bg2 {[%clk 0:02:59.2]} 4... Be7 {[%clk 0:03:01]} 5. O-O {[%clk 0:02:59.2]}
5... O-O {[%clk 0:03:00.5]} 6. d4 {[%clk 0:02:58.8]} 6... c6 {[%clk 0:03:00.6]}
7. Nc3 {[%clk 0:02:56.6]} 7... b6 {[%clk 0:03:01]} 8. Nd2 {[%clk 0:02:55.2]}
8... Bb7 {[%clk 0:03:01.3]} 9. e4 {[%clk 0:02:55.3]} 9... Na6 {[%clk 0:02:59.7]}
10. cxd5 {[%clk 0:02:38.5]} 10... cxd5 {[%clk 0:03:00.6]} 11. e5 {[%clk
0:02:38.7]} 11... Nd7 {[%clk 0:02:59]} 12. a3 {[%clk 0:02:33.6]} 12... Rc8
{[%clk 0:02:57.2]} 13. f4 {[%clk 0:02:33]} 13... g6 {[%clk 0:02:56.7]} 14. g4
{[%clk 0:02:27.8]} 14... b5 {[%clk 0:02:47.2]} 15. f5 {[%clk 0:02:19.7]} 15...
b4 {[%clk 0:02:45.1]} 16. axb4 {[%clk 0:02:18.9]} 16... Nxb4 {[%clk 0:02:45.5]}
17. fxe6 {[%clk 0:02:10.3]} 17... fxe6 {[%clk 0:02:43.2]} 18. Rxf8+ {[%clk
0:02:03.8]} 18... Nxf8 {[%clk 0:02:38.7]} 19. Nf3 {[%clk 0:02:00]} 19... a6
{[%clk 0:02:28.8]} 20. Bf1 {[%clk 0:01:49.3]} 20... Qb6 {[%clk 0:02:24.5]} 21.
Bg5 {[%clk 0:01:24]} 21... Qd8 {[%clk 0:02:24.2]} 22. Bxe7 {[%clk 0:01:23]}
22... Qxe7 {[%clk 0:02:25.1]} 23. Qb3 {[%clk 0:01:15.2]} 23... Rb8 {[%clk
0:02:10.1]} 24. Ra4 {[%clk 0:01:07]} 24... Bc6 {[%clk 0:02:10]} 25. Rxa6 {[%clk
0:01:04.1]} 25... Nxa6 {[%clk 0:02:08.7]} 26. Qc2 {[%clk 0:00:46.5]} 26... Nb4
{[%clk 0:02:08.1]} 27. Qd2 {[%clk 0:00:46.3]} 27... Ra8 {[%clk 0:02:02.8]} 28.
h4 {[%clk 0:00:46.3]} 28... Ra1 {[%clk 0:02:02.1]} 29. Kg2 {[%clk 0:00:44.1]}
29... Qf7 {[%clk 0:02:00.9]} 30. Be2 {[%clk 0:00:40.9]} 30... Qe7 {[%clk
0:01:59.3]} 31. h5 {[%clk 0:00:40]} 31... Ra8 {[%clk 0:01:57.1]} 32. h6 {[%clk
0:00:38.9]} 32... Nd7 {[%clk 0:01:55.4]} 33. Ng5 {[%clk 0:00:38.9]} 33... Rf8
{[%clk 0:01:53.8]} 34. Nd1 {[%clk 0:00:36.8]} 34... Nb6 {[%clk 0:01:52.6]} 35.
Nf3 {[%clk 0:00:30.4]} 35... Nc4 {[%clk 0:01:52.1]} 36. Qc3 {[%clk 0:00:30.9]}
36... Na2 {[%clk 0:01:47]} 37. Qc2 {[%clk 0:00:25.8]} 37... Ne3+ {[%clk
0:01:43.6]} 38. Nxe3 {[%clk 0:00:25.3]} 38... Nb4 {[%clk 0:01:42.2]} 39. Qc3
{[%clk 0:00:25.1]} 39... Bd7 {[%clk 0:01:39.3]} 40. Nf1 {[%clk 0:00:18.1]} 40...
Rc8 {[%clk 0:01:37.7]} 41. Qa3 {[%clk 0:00:15]} 41... Rc2 {[%clk 0:01:35.4]} 42.
Kf2 {[%clk 0:00:15.5]} 42... Bb5 {[%clk 0:01:29.9]} 43. N1d2 {[%clk 0:00:14.5]}
43... Nd3+ {[%clk 0:01:28.4]} 44. Bxd3 {[%clk 0:00:13.9]} 44... Qxa3 {[%clk
0:01:27.8]} 45. bxa3 {[%clk 0:00:14.6]} 45... Bxd3 {[%clk 0:01:28.2]} 46. Ke3
{[%clk 0:00:15.1]} 46... Bb5 {[%clk 0:01:26.4]} 47. Ng5 {[%clk 0:00:14.3]} 47...
Bd7 {[%clk 0:01:23.9]} 48. Kd3 {[%clk 0:00:12.8]} 48... Ra2 {[%clk 0:01:23.4]}
49. Nb1 {[%clk 0:00:13.3]} 49... Ra1 {[%clk 0:01:22.7]} 50. Kc2 {[%clk
0:00:13.7]} 50... Ra2+ {[%clk 0:01:21.4]} 51. Kb3 {[%clk 0:00:13]} 51... Rg2
{[%clk 0:01:21.2]} 52. Nf3 {[%clk 0:00:10.3]} 52... Rxg4 {[%clk 0:01:17]} 53. a4
{[%clk 0:00:10]} 53... Rg3 {[%clk 0:01:15.2]} 54. Nd2 {[%clk 0:00:10.4]} 54...
g5 {[%clk 0:01:15.5]} 55. Kb4 {[%clk 0:00:10.7]} 55... g4 {[%clk 0:01:15.6]} 56.
Ng5 {[%clk 0:00:06.8]} 56... Rg2 {[%clk 0:01:13.8]} 57. Nb3 {[%clk 0:00:06.7]}
57... g3 {[%clk 0:01:12.7]} 58. a5 {[%clk 0:00:07.1]} 58... Ra2 {[%clk
0:01:11.5]} 59. Nd2 {[%clk 0:00:05.6]} 59... Rxd2 {[%clk 0:01:09.8]} 60. Nf3
{[%clk 0:00:04.9]} 60... Ra2 {[%clk 0:01:09.4]} 61. Kc5 {[%clk 0:00:03.8]} 61...
Rxa5+ {[%clk 0:01:08.2]} 62. Kd6 {[%clk 0:00:04.7]} 62... Bc8 {[%clk 0:01:07.9]}
63. Ke7 {[%clk 0:00:05.6]} 63... Ra3 {[%clk 0:01:07.6]} 64. Kf6 {[%clk
0:00:06.1]} 64... Rxf3+ {[%clk 0:01:07.4]} 65. Ke7 {[%clk 0:00:07]} 65... g2
{[%clk 0:01:06.6]} 66. Kd6 {[%clk 0:00:07.9]} 66... g1=Q {[%clk 0:01:05.5]} 67.
Ke7 {[%clk 0:00:08.8]} 67... Qg5+ {[%clk 0:01:05.1]} 68. Kd6 {[%clk 0:00:09.7]}
68... Qd8+ {[%clk 0:01:05]} 69. Kc6 {[%clk 0:00:10.6]} 69... Rc3+ {[%clk
0:01:05.1]} 70. Kb5 {[%clk 0:00:10.3]} 70... Bd7+ {[%clk 0:01:05]} 71. Ka6
{[%clk 0:00:11.2]} 71... Rb3 {[%clk 0:01:02.1]} 72. Ka7 {[%clk 0:00:12.1]} 72...
Qb8+ {[%clk 0:01:01.5]} 73. Ka6 {[%clk 0:00:13]} 73... Qa8# {[%clk 0:01:00.8]}
0-1

[Event "Late-Titled-Tuesday-Blitz-May-14-2024"]
[Site "Chess.com"]
[Date "2024.05.14"]
[Round "8"]
[White "Ramil_Faizrakhmanov"]
[Black "volcanoexplorer"]
[Result "1-0"]
[WhiteElo "2861"]
[BlackElo "2709"]
[TimeControl "180+1"]
[EndTime "15:27:52 PDT"]
[Termination "Ramil_Faizrakhmanov won by resignation"]

1. d4 {[%clk 0:02:59.9]} 1... d5 {[%clk 0:02:58.2]} 2. c4 {[%clk 0:03:00.3]}
2... e6 {[%clk 0:02:58.8]} 3. Nc3 {[%clk 0:02:59.9]} 3... Bb4 {[%clk 0:02:59]}
4. a3 {[%clk 0:02:59.3]} 4... Bxc3+ {[%clk 0:02:58.9]} 5. bxc3 {[%clk
0:03:00.2]} 5... Nf6 {[%clk 0:02:59.7]} 6. e3 {[%clk 0:03:00.2]} 6... c6 {[%clk
0:02:59.8]} 7. Nf3 {[%clk 0:03:00.2]} 7... O-O {[%clk 0:02:59]} 8. a4 {[%clk
0:02:58.4]} 8... Nbd7 {[%clk 0:02:56.7]} 9. Bd3 {[%clk 0:02:57]} 9... b6 {[%clk
0:02:56.8]} 10. cxd5 {[%clk 0:02:56.1]} 10... cxd5 {[%clk 0:02:57.2]} 11. c4
{[%clk 0:02:54.3]} 11... Ba6 {[%clk 0:02:55.7]} 12. cxd5 {[%clk 0:02:52.6]}
12... Bxd3 {[%clk 0:02:54.6]} 13. Qxd3 {[%clk 0:02:50.2]} 13... exd5 {[%clk
0:02:53.9]} 14. O-O {[%clk 0:02:49.5]} 14... Qc7 {[%clk 0:02:32.9]} 15. a5
{[%clk 0:02:46.1]} 15... bxa5 {[%clk 0:02:26.6]} 16. Bd2 {[%clk 0:02:44.9]}
16... Rfc8 {[%clk 0:02:09.5]} 17. Rxa5 {[%clk 0:02:43.1]} 17... Nb6 {[%clk
0:02:09.8]} 18. Rfa1 {[%clk 0:02:34]} 18... Nc4 {[%clk 0:02:08.3]} 19. Ra6
{[%clk 0:02:29.5]} 19... Ne4 {[%clk 0:02:05]} 20. Be1 {[%clk 0:02:18.8]} 20...
Rcb8 {[%clk 0:01:29.9]} 21. h4 {[%clk 0:02:10.3]} 21... h6 {[%clk 0:01:30]} 22.
Qc2 {[%clk 0:01:52.9]} 22... Rb2 {[%clk 0:01:15.8]} 23. Qa4 {[%clk 0:01:51.3]}
23... Nxe3 {[%clk 0:01:05.3]} 24. fxe3 {[%clk 0:01:46]} 24... Qc8 {[%clk
0:00:37.5]} 25. Ne5 {[%clk 0:01:29.3]} 25... f6 {[%clk 0:00:26.7]} 26. Nd3
{[%clk 0:01:27.9]} 26... Rxg2+ {[%clk 0:00:19.7]} 27. Kxg2 {[%clk 0:01:24.8]}
27... Qg4+ {[%clk 0:00:20.4]} 28. Kh2 {[%clk 0:00:34.5]} 28... Qe2+ {[%clk
0:00:20.1]} 29. Bf2 {[%clk 0:00:11]} 29... Nxf2 {[%clk 0:00:20.3]} 30. Qa2
{[%clk 0:00:07.6]} 30... Ng4+ {[%clk 0:00:17.5]} 31. Kg3 {[%clk 0:00:06.6]}
31... Qxe3+ {[%clk 0:00:14.9]} 32. Kg2 {[%clk 0:00:03.5]} 32... Qxd3 {[%clk
0:00:06.3]} 33. Qxd5+ {[%clk 0:00:03.3]} 33... Kh7 {[%clk 0:00:06.9]} 34. Qxa8
{[%clk 0:00:03.1]} 34... Qe2+ {[%clk 0:00:06.8]} 35. Kg3 {[%clk 0:00:03.3]}
35... Qf2+ {[%clk 0:00:05.5]} 36. Kxg4 {[%clk 0:00:03.5]} 36... f5+ {[%clk
0:00:02.4]} 37. Kh3 {[%clk 0:00:03.6]} 37... Qe3+ {[%clk 0:00:03]} 38. Kh2
{[%clk 0:00:03.6]} 38... Qf2+ {[%clk 0:00:03.4]} 39. Qg2 {[%clk 0:00:04.1]}
39... Qxh4+ {[%clk 0:00:03.9]} 40. Kg1 {[%clk 0:00:04.1]} 40... Qxd4+ {[%clk
0:00:04.5]} 41. Qf2 {[%clk 0:00:04.6]} 41... Qg4+ {[%clk 0:00:04.8]} 42. Kf1
{[%clk 0:00:05.3]} 42... Qc4+ {[%clk 0:00:05.3]} 43. Qe2 {[%clk 0:00:05.8]}
43... Qf4+ {[%clk 0:00:06]} 44. Ke1 {[%clk 0:00:06.4]} 44... Qg3+ {[%clk
0:00:06]} 45. Kd2 {[%clk 0:00:06.1]} 45... Qb3 {[%clk 0:00:06.4]} 46. Qd3 {[%clk
0:00:06.1]} 46... Qb2+ {[%clk 0:00:06.8]} 47. Ke3 {[%clk 0:00:05.6]} 47... Qe5+
{[%clk 0:00:07.2]} 48. Kf3 {[%clk 0:00:06.1]} 48... g5 {[%clk 0:00:07.4]} 49.
Rxa7+ {[%clk 0:00:06.1]} 49... Kg6 {[%clk 0:00:08]} 50. R7a6+ {[%clk 0:00:05.9]}
50... Kg7 {[%clk 0:00:07.3]} 51. Qd7+ {[%clk 0:00:05.8]} 1-0

[Event "Late-Titled-Tuesday-Blitz-May-14-2024"]
[Site "Chess.com"]
[Date "2024.05.14"]
[Round "8"]
[White "Kira170"]
[Black "ATM622"]
[Result "1-0"]
[WhiteElo "2759"]
[BlackElo "2556"]
[TimeControl "180+1"]
[EndTime "15:27:55 PDT"]
[Termination "Kira170 won by resignation"]

1. d4 {[%clk 0:02:22]} 1... d5 {[%clk 0:02:58.5]} 2. c4 {[%clk 0:02:21.2]} 2...
e6 {[%clk 0:02:58.4]} 3. Nf3 {[%clk 0:02:21.3]} 3... Nf6 {[%clk 0:02:58.6]} 4.
Nc3 {[%clk 0:02:21.3]} 4... Be7 {[%clk 0:02:58.2]} 5. Bf4 {[%clk 0:02:20.7]}
5... O-O {[%clk 0:02:58.2]} 6. a3 {[%clk 0:02:21.2]} 6... dxc4 {[%clk
0:02:56.8]} 7. e3 {[%clk 0:02:19.6]} 7... c5 {[%clk 0:02:57]} 8. Bxc4 {[%clk
0:02:19.3]} 8... Nbd7 {[%clk 0:02:55.8]} 9. O-O {[%clk 0:02:18.5]} 9... Nb6
{[%clk 0:02:55.8]} 10. Bd3 {[%clk 0:02:16.4]} 10... cxd4 {[%clk 0:02:54.6]} 11.
exd4 {[%clk 0:02:16.6]} 11... Bd7 {[%clk 0:02:52.2]} 12. Qe2 {[%clk 0:02:14.7]}
12... Bc6 {[%clk 0:02:50.2]} 13. Rfd1 {[%clk 0:02:14.5]} 13... Nbd5 {[%clk
0:02:48.3]} 14. Bg5 {[%clk 0:02:09.7]} 14... h6 {[%clk 0:02:43.1]} 15. Bd2
{[%clk 0:02:06.5]} 15... Rc8 {[%clk 0:02:38.3]} 16. Ne5 {[%clk 0:02:06.5]} 16...
Qb6 {[%clk 0:02:25.7]} 17. Be3 {[%clk 0:01:45.8]} 17... Rfd8 {[%clk 0:02:20.5]}
18. Re1 {[%clk 0:01:35]} 18... Qa5 {[%clk 0:02:12.7]} 19. Bd2 {[%clk 0:01:29.3]}
19... Qb6 {[%clk 0:02:12]} 20. Be3 {[%clk 0:01:29.7]} 20... Qa5 {[%clk 0:02:12]}
21. Bxh6 {[%clk 0:01:19.8]} 21... gxh6 {[%clk 0:01:58]} 22. Nxf7 {[%clk
0:01:19.8]} 22... Kxf7 {[%clk 0:01:49.3]} 23. Qxe6+ {[%clk 0:01:19.8]} 23... Kf8
{[%clk 0:01:49.7]} 24. Bg6 {[%clk 0:01:09.1]} 24... Be8 {[%clk 0:01:49.6]} 25.
Bxe8 {[%clk 0:00:37.8]} 25... Rxe8 {[%clk 0:01:50.5]} 26. Re5 {[%clk 0:00:23.6]}
26... Rxc3 {[%clk 0:01:21]} 27. bxc3 {[%clk 0:00:19.3]} 27... Qxc3 {[%clk
0:01:20.5]} 28. Rae1 {[%clk 0:00:18.3]} 28... Qxd4 {[%clk 0:01:13.7]} 29. Qh3
{[%clk 0:00:17.4]} 29... Kg7 {[%clk 0:00:49.7]} 30. Qg3+ {[%clk 0:00:17.6]}
30... Kf7 {[%clk 0:00:39.2]} 31. Qh3 {[%clk 0:00:16.8]} 31... Qd2 {[%clk
0:00:28.9]} 32. Qf5 {[%clk 0:00:13.3]} 32... Kf8 {[%clk 0:00:13.2]} 33. h3
{[%clk 0:00:12.4]} 33... Qd4 {[%clk 0:00:03]} 34. Qg6 {[%clk 0:00:11.6]} 34...
Qd2 {[%clk 0:00:02.9]} 35. Re6 {[%clk 0:00:09.9]} 35... Qf4 {[%clk 0:00:01.9]}
36. Qd3 {[%clk 0:00:06.6]} 36... Qg5 {[%clk 0:00:02.3]} 37. R6e5 {[%clk
0:00:06.3]} 37... Qg7 {[%clk 0:00:02.5]} 38. Qf5 {[%clk 0:00:05.6]} 38... Qf7
{[%clk 0:00:02.2]} 39. Qd3 {[%clk 0:00:01.3]} 39... Bd6 {[%clk 0:00:02.1]} 40.
Rxe8+ {[%clk 0:00:01.3]} 40... Nxe8 {[%clk 0:00:02.4]} 41. Qd4 {[%clk
0:00:01.4]} 41... Nec7 {[%clk 0:00:02.4]} 42. Qxa7 {[%clk 0:00:01.6]} 42... Qf6
{[%clk 0:00:02]} 43. Qa8+ {[%clk 0:00:01.8]} 43... Kf7 {[%clk 0:00:02.5]} 44.
Qxb7 {[%clk 0:00:02.3]} 44... Qf5 {[%clk 0:00:02.1]} 45. Qb3 {[%clk 0:00:01.5]}
45... Qf4 {[%clk 0:00:02.2]} 46. g3 {[%clk 0:00:01.6]} 46... Qf5 {[%clk
0:00:02.3]} 47. h4 {[%clk 0:00:02.3]} 47... h5 {[%clk 0:00:02.4]} 48. a4 {[%clk
0:00:02.8]} 48... Qf6 {[%clk 0:00:01.6]} 49. a5 {[%clk 0:00:03.4]} 49... Qf5
{[%clk 0:00:00.9]} 50. a6 {[%clk 0:00:03.7]} 50... Bc5 {[%clk 0:00:01.4]} 51.
Re2 {[%clk 0:00:03.7]} 51... Qf3 {[%clk 0:00:01.1]} 52. Qxf3+ {[%clk 0:00:03.7]}
52... Kg7 {[%clk 0:00:01.6]} 53. Re4 {[%clk 0:00:04.2]} 1-0

[Event "Late-Titled-Tuesday-Blitz-May-14-2024"]
[Site "Chess.com"]
[Date "2024.05.14"]
[Round "8"]
[White "HipsterChess22"]
[Black "mfschulz"]
[Result "1-0"]
[WhiteElo "2198"]
[BlackElo "2258"]
[TimeControl "180+1"]
[EndTime "15:27:55 PDT"]
[Termination "HipsterChess22 won on time"]

1. d4 {[%clk 0:03:00.3]} 1... Nf6 {[%clk 0:02:47.3]} 2. Nc3 {[%clk 0:03:00]}
2... c5 {[%clk 0:02:46]} 3. dxc5 {[%clk 0:02:59.6]} 3... e6 {[%clk 0:02:45.6]}
4. e4 {[%clk 0:02:58.9]} 4... Bxc5 {[%clk 0:02:38]} 5. e5 {[%clk 0:02:58.7]}
5... Ng8 {[%clk 0:02:35.5]} 6. Ne4 {[%clk 0:02:54.8]} 6... Qc7 {[%clk
0:02:24.6]} 7. Nd6+ {[%clk 0:02:40.4]} 7... Bxd6 {[%clk 0:02:24.2]} 8. exd6
{[%clk 0:02:40.3]} 8... Qb6 {[%clk 0:02:20.5]} 9. Nf3 {[%clk 0:02:25.6]} 9...
Nf6 {[%clk 0:02:20.3]} 10. Be3 {[%clk 0:02:14.4]} 10... Qxb2 {[%clk 0:02:18.9]}
11. Bc4 {[%clk 0:02:08.4]} 11... Qc3+ {[%clk 0:02:14.2]} 12. Nd2 {[%clk
0:02:05.5]} 12... Ne4 {[%clk 0:02:09.9]} 13. Bd3 {[%clk 0:02:00]} 13... Nxd6
{[%clk 0:02:06.9]} 14. O-O {[%clk 0:01:57.7]} 14... Nc6 {[%clk 0:02:06.6]} 15.
Ne4 {[%clk 0:01:51.9]} 15... Nxe4 {[%clk 0:02:04.7]} 16. Bxe4 {[%clk 0:01:52.8]}
16... d5 {[%clk 0:02:03.3]} 17. Bd3 {[%clk 0:01:41]} 17... Bd7 {[%clk
0:01:59.4]} 18. Rb1 {[%clk 0:01:36]} 18... b6 {[%clk 0:01:56.8]} 19. Qg4 {[%clk
0:01:27.8]} 19... O-O {[%clk 0:01:38.2]} 20. Bb5 {[%clk 0:01:06.6]} 20... Ne5
{[%clk 0:01:30]} 21. Qa4 {[%clk 0:00:48]} 21... Bxb5 {[%clk 0:01:25.4]} 22. Qxb5
{[%clk 0:00:46.3]} 22... Qxc2 {[%clk 0:01:20.3]} 23. Rfc1 {[%clk 0:00:41.8]}
23... Qd3 {[%clk 0:01:14.1]} 24. Qa4 {[%clk 0:00:33.7]} 24... Rac8 {[%clk
0:00:48.5]} 25. Qxa7 {[%clk 0:00:27.3]} 25... Nc4 {[%clk 0:00:43.1]} 26. Bxb6
{[%clk 0:00:21.6]} 26... Ra8 {[%clk 0:00:42.7]} 27. Qc7 {[%clk 0:00:16.1]} 27...
Nxb6 {[%clk 0:00:40.3]} 28. Rxb6 {[%clk 0:00:13.7]} 28... Rxa2 {[%clk
0:00:39.1]} 29. Rb7 {[%clk 0:00:12.7]} 29... Qf5 {[%clk 0:00:35.3]} 30. Rf1
{[%clk 0:00:11.6]} 30... h5 {[%clk 0:00:32.9]} 31. h3 {[%clk 0:00:11]} 31... Rc2
{[%clk 0:00:29]} 32. Qe7 {[%clk 0:00:10.2]} 32... Qf6 {[%clk 0:00:26.3]} 33.
Qxf6 {[%clk 0:00:07.7]} 33... gxf6 {[%clk 0:00:25.9]} 34. Rd1 {[%clk 0:00:06.8]}
34... Rfc8 {[%clk 0:00:25.3]} 35. Ra1 {[%clk 0:00:05.1]} 35... Rc1+ {[%clk
0:00:24.6]} 36. Rxc1 {[%clk 0:00:05.7]} 36... Rxc1+ {[%clk 0:00:24.3]} 37. Kh2
{[%clk 0:00:06.6]} 37... Kg7 {[%clk 0:00:21.4]} 38. Kg3 {[%clk 0:00:07]} 38...
Kg6 {[%clk 0:00:21.2]} 39. f3 {[%clk 0:00:06.5]} 39... Rc2 {[%clk 0:00:20]} 40.
Rb8 {[%clk 0:00:06.3]} 40... Kg7 {[%clk 0:00:13.3]} 41. Rb4 {[%clk 0:00:05.2]}
41... f5 {[%clk 0:00:12.4]} 42. h4 {[%clk 0:00:04.3]} 42... e5 {[%clk
0:00:09.8]} 43. Kh3 {[%clk 0:00:05]} 43... f4 {[%clk 0:00:07.8]} 44. Rb5 {[%clk
0:00:04.6]} 44... Rd2 {[%clk 0:00:06.5]} 45. Rc5 {[%clk 0:00:04.7]} 45... Kf6
{[%clk 0:00:05.2]} 46. Ra5 {[%clk 0:00:05]} 46... Kf5 {[%clk 0:00:05.2]} 47. Ra7
{[%clk 0:00:04.2]} 47... f6 {[%clk 0:00:05]} 48. Ra8 {[%clk 0:00:04.1]} 48... e4
{[%clk 0:00:00.2]} 49. fxe4+ {[%clk 0:00:04]} 49... dxe4 {[%clk 0:00:00.2]} 50.
Ra5+ {[%clk 0:00:04.9]} 50... Kg6 {[%clk 0:00:00.2]} 51. Ra4 {[%clk 0:00:03.7]}
1-0